[Event "*** SCC Grand Prix: Titled Tuesday Blitz"]
[Site "Chess.com"]
[Date "2020.09.29"]
[Round "1"]
[White "Gahan-MG"]
[Black "ExcitingTrap"]
[Result "1/2-1/2"]
[WhiteElo "2580"]
[BlackElo "2292"]
[TimeControl "180+1"]
[EndTime "10:08:13 PDT"]
[Termination "Game drawn - insufficient material"]

1. e4 {[%clk 0:03:00.3]} 1... e6 {[%clk 0:02:58]} 2. b3 {[%clk 0:02:58.9]} 2...
d5 {[%clk 0:02:55.8]} 3. Bb2 {[%clk 0:02:59.4]} 3... Nf6 {[%clk 0:02:52]} 4. e5
{[%clk 0:02:59.2]} 4... Nfd7 {[%clk 0:02:51.8]} 5. c4 {[%clk 0:03:00.1]} 5...
dxc4 {[%clk 0:02:45.3]} 6. Bxc4 {[%clk 0:03:01]} 6... Nb6 {[%clk 0:02:40.8]} 7.
Nf3 {[%clk 0:02:55.3]} 7... Nxc4 {[%clk 0:02:35.4]} 8. bxc4 {[%clk 0:02:56.2]}
8... c5 {[%clk 0:02:17.6]} 9. O-O {[%clk 0:02:55.7]} 9... Be7 {[%clk 0:02:17.1]}
10. Nc3 {[%clk 0:02:48.5]} 10... O-O {[%clk 0:02:16.2]} 11. Ne4 {[%clk
0:02:48.2]} 11... Qd3 {[%clk 0:02:10.3]} 12. Re1 {[%clk 0:02:44.7]} 12... Qxc4
{[%clk 0:02:08.5]} 13. d4 {[%clk 0:02:42.9]} 13... cxd4 {[%clk 0:02:00.4]} 14.
Nxd4 {[%clk 0:02:37.6]} 14... Rd8 {[%clk 0:01:55.5]} 15. Rc1 {[%clk 0:02:35.9]}
15... Qb4 {[%clk 0:01:49.6]} 16. Bc3 {[%clk 0:02:33.5]} 16... Qb6 {[%clk
0:01:46.9]} 17. Qg4 {[%clk 0:02:32.7]} 17... Kh8 {[%clk 0:01:39.9]} 18. Nd6
{[%clk 0:02:23.3]} 18... Bxd6 {[%clk 0:01:25.1]} 19. exd6 {[%clk 0:02:23]} 19...
e5 {[%clk 0:01:23.9]} 20. Nf5 {[%clk 0:02:17.5]} 20... Bxf5 {[%clk 0:01:23.8]}
21. Qxf5 {[%clk 0:02:17.1]} 21... f6 {[%clk 0:01:20.5]} 22. Red1 {[%clk
0:02:05.5]} 22... Nd7 {[%clk 0:01:17.3]} 23. h4 {[%clk 0:02:02.5]} 23... Nf8
{[%clk 0:01:12.6]} 24. d7 {[%clk 0:01:55.1]} 24... Qe6 {[%clk 0:01:11.4]} 25.
Qxe6 {[%clk 0:01:51.6]} 25... Nxe6 {[%clk 0:01:12.3]} 26. Rd6 {[%clk 0:01:45.7]}
26... Nc5 {[%clk 0:01:05.7]} 27. Rd5 {[%clk 0:01:35.6]} 27... b6 {[%clk
0:01:01.1]} 28. Rcd1 {[%clk 0:01:35.5]} 28... Kg8 {[%clk 0:00:54.5]} 29. Bb4
{[%clk 0:01:35.3]} 29... Kf7 {[%clk 0:00:47.3]} 30. Bxc5 {[%clk 0:01:35]} 30...
bxc5 {[%clk 0:00:48.2]} 31. Rxc5 {[%clk 0:01:35.9]} 31... Ke7 {[%clk 0:00:44.4]}
32. Rc7 {[%clk 0:01:35.7]} 32... a5 {[%clk 0:00:43.9]} 33. a4 {[%clk 0:01:35]}
33... Ra6 {[%clk 0:00:42.8]} 34. g3 {[%clk 0:01:11.3]} 34... Rd6 {[%clk
0:00:36.1]} 35. Rxd6 {[%clk 0:01:11.4]} 35... Kxd6 {[%clk 0:00:37]} 36. Ra7
{[%clk 0:01:12]} 36... Rxd7 {[%clk 0:00:37.3]} 37. Rxa5 {[%clk 0:01:12.4]} 37...
Rc7 {[%clk 0:00:34.1]} 38. Ra8 {[%clk 0:01:10.9]} 38... Kc6 {[%clk 0:00:31.8]}
39. Kg2 {[%clk 0:01:08.8]} 39... Kb7 {[%clk 0:00:31.5]} 40. Ra5 {[%clk
0:01:02.8]} 40... Rc4 {[%clk 0:00:28.5]} 41. h5 {[%clk 0:00:57.3]} 41... h6
{[%clk 0:00:27.2]} 42. f3 {[%clk 0:00:50.4]} 42... Kb6 {[%clk 0:00:25.9]} 43.
Ra8 {[%clk 0:00:49.7]} 43... Kb7 {[%clk 0:00:24.6]} 44. Ra5 {[%clk 0:00:43.4]}
44... Kb6 {[%clk 0:00:24.5]} 45. Rb5+ {[%clk 0:00:43.9]} 45... Kc7 {[%clk
0:00:22]} 46. a5 {[%clk 0:00:41.9]} 46... Ra4 {[%clk 0:00:21.4]} 47. g4 {[%clk
0:00:38.6]} 47... Kc6 {[%clk 0:00:20.8]} 48. Rb6+ {[%clk 0:00:38.9]} 48... Kc7
{[%clk 0:00:21.4]} 49. Re6 {[%clk 0:00:34.8]} 49... Kd7 {[%clk 0:00:21.1]} 50.
Ra6 {[%clk 0:00:34.9]} 50... e4 {[%clk 0:00:17.2]} 51. fxe4 {[%clk 0:00:25]}
51... Rxe4 {[%clk 0:00:16.7]} 52. Ra7+ {[%clk 0:00:25.4]} 52... Ke6 {[%clk
0:00:16.1]} 53. Rxg7 {[%clk 0:00:26]} 53... Ra4 {[%clk 0:00:15.9]} 54. Kg3
{[%clk 0:00:23]} 54... Rxa5 {[%clk 0:00:15.8]} 55. Rg6 {[%clk 0:00:23.5]} 55...
Ra3+ {[%clk 0:00:15.5]} 56. Kh4 {[%clk 0:00:23.3]} 56... Kf7 {[%clk 0:00:15.5]}
57. Rxh6 {[%clk 0:00:21.8]} 57... Ra4 {[%clk 0:00:15.2]} 58. Rg6 {[%clk
0:00:16]} 58... f5 {[%clk 0:00:15.3]} 59. Rg5 {[%clk 0:00:08.6]} 59... Rxg4+
{[%clk 0:00:15.5]} 60. Rxg4 {[%clk 0:00:07.9]} 60... fxg4 {[%clk 0:00:16.4]} 61.
Kxg4 {[%clk 0:00:08]} 61... Kg7 {[%clk 0:00:17.3]} 62. h6+ {[%clk 0:00:08.9]}
62... Kxh6 {[%clk 0:00:17.3]} 1/2-1/2

[Event "*** SCC Grand Prix: Titled Tuesday Blitz"]
[Site "Chess.com"]
[Date "2020.09.29"]
[Round "1"]
[White "DenLaz"]
[Black "WPWPWP-2015"]
[Result "1-0"]
[WhiteElo "2806"]
[BlackElo "2404"]
[TimeControl "180+1"]
[EndTime "10:08:15 PDT"]
[Termination "DenLaz won by resignation"]

1. d4 {[%clk 0:02:55.9]} 1... Nf6 {[%clk 0:02:58.6]} 2. c4 {[%clk 0:02:55.1]}
2... e6 {[%clk 0:02:58.3]} 3. Nf3 {[%clk 0:02:52.5]} 3... d5 {[%clk 0:02:56.3]}
4. Nc3 {[%clk 0:02:51.8]} 4... c6 {[%clk 0:02:55.6]} 5. e3 {[%clk 0:02:50.5]}
5... Nbd7 {[%clk 0:02:55.2]} 6. Qc2 {[%clk 0:02:49.3]} 6... Bd6 {[%clk
0:02:54.6]} 7. Bd2 {[%clk 0:02:49.2]} 7... O-O {[%clk 0:02:53.6]} 8. O-O-O
{[%clk 0:02:49.7]} 8... Re8 {[%clk 0:02:47.3]} 9. e4 {[%clk 0:02:48.4]} 9... c5
{[%clk 0:02:24]} 10. dxc5 {[%clk 0:01:53.6]} 10... Bxc5 {[%clk 0:02:11.2]} 11.
e5 {[%clk 0:01:53]} 11... Ng4 {[%clk 0:02:06.5]} 12. Bg5 {[%clk 0:01:51.3]}
12... Qa5 {[%clk 0:01:56.3]} 13. cxd5 {[%clk 0:01:49.3]} 13... Nxf2 {[%clk
0:01:50.6]} 14. dxe6 {[%clk 0:01:46.7]} 14... fxe6 {[%clk 0:01:45.7]} 15. Bd3
{[%clk 0:01:41.4]} 15... Nf8 {[%clk 0:01:34.8]} 16. Ne4 {[%clk 0:01:31.2]} 16...
Nxd3+ {[%clk 0:01:21.2]} 17. Rxd3 {[%clk 0:01:29.3]} 17... Be7 {[%clk
0:01:01.3]} 18. Bxe7 {[%clk 0:01:20.5]} 18... Rxe7 {[%clk 0:01:01.1]} 19. Kb1
{[%clk 0:01:14.6]} 19... Bd7 {[%clk 0:01:00.4]} 20. Nd6 {[%clk 0:01:13.6]} 20...
Bc6 {[%clk 0:00:58]} 21. Rf1 {[%clk 0:01:12.3]} 21... h6 {[%clk 0:00:51.4]} 22.
Re3 {[%clk 0:01:04.2]} 22... Rd8 {[%clk 0:00:49.9]} 23. Nd4 {[%clk 0:00:59.1]}
23... Bd5 {[%clk 0:00:48.5]} 24. a3 {[%clk 0:00:58]} 24... Rc7 {[%clk
0:00:47.3]} 25. Qf2 {[%clk 0:00:55.8]} 25... Qb6 {[%clk 0:00:32.8]} 26. Rg3
{[%clk 0:00:52.6]} 26... Nh7 {[%clk 0:00:07.6]} 27. N4b5 {[%clk 0:00:24.1]}
27... Re7 {[%clk 0:00:07.3]} 28. Qxb6 {[%clk 0:00:22.9]} 28... axb6 {[%clk
0:00:07.2]} 29. Nc3 {[%clk 0:00:23.2]} 29... Ng5 {[%clk 0:00:07.2]} 30. h4
{[%clk 0:00:21.5]} 30... Nf7 {[%clk 0:00:07.3]} 31. Nxf7 {[%clk 0:00:20.9]}
31... Rxf7 {[%clk 0:00:08.2]} 32. Rxf7 {[%clk 0:00:21.1]} 32... Kxf7 {[%clk
0:00:09.1]} 33. Nb5 {[%clk 0:00:21.5]} 33... Be4+ {[%clk 0:00:07.4]} 34. Kc1
{[%clk 0:00:21.1]} 34... Bf5 {[%clk 0:00:06.7]} 35. Nd6+ {[%clk 0:00:21.2]}
35... Kg8 {[%clk 0:00:06.9]} 36. Rc3 {[%clk 0:00:19.9]} 36... Rd7 {[%clk
0:00:06.9]} 37. Kd2 {[%clk 0:00:19.3]} 37... Kh7 {[%clk 0:00:06.9]} 38. Ke3
{[%clk 0:00:19.8]} 38... g5 {[%clk 0:00:06.9]} 39. hxg5 {[%clk 0:00:19.7]} 39...
hxg5 {[%clk 0:00:06.8]} 40. Rb3 {[%clk 0:00:20.3]} 40... Rc7 {[%clk 0:00:06.2]}
41. Rxb6 {[%clk 0:00:20.2]} 41... Kg6 {[%clk 0:00:06.5]} 42. Rxb7 {[%clk
0:00:20.5]} 42... Rc5 {[%clk 0:00:05.7]} 43. Rb5 {[%clk 0:00:19.3]} 43... Rc2
{[%clk 0:00:05.3]} 44. a4 {[%clk 0:00:19.4]} 44... Rxg2 {[%clk 0:00:04.5]} 45.
a5 {[%clk 0:00:19.9]} 45... Rg3+ {[%clk 0:00:04.5]} 46. Kd4 {[%clk 0:00:19.4]}
46... Rg4+ {[%clk 0:00:04.6]} 47. Kc5 {[%clk 0:00:19.1]} 47... Rg2 {[%clk
0:00:03.5]} 48. a6 {[%clk 0:00:18.9]} 48... Rc2+ {[%clk 0:00:03.5]} 49. Kb6
{[%clk 0:00:18.5]} 49... Bd3 {[%clk 0:00:04.1]} 50. a7 {[%clk 0:00:17.9]} 50...
Bxb5 {[%clk 0:00:04]} 51. a8=Q {[%clk 0:00:18.3]} 51... Bd3 {[%clk 0:00:04.3]}
52. Qg8+ {[%clk 0:00:18.2]} 52... Kh5 {[%clk 0:00:04.8]} 53. Qxe6 {[%clk
0:00:18.1]} 53... Re2 {[%clk 0:00:04.7]} 54. Qf7+ {[%clk 0:00:17.3]} 54... Kg4
{[%clk 0:00:04.9]} 55. e6 {[%clk 0:00:17.6]} 55... Rxb2+ {[%clk 0:00:03.1]} 56.
Kc5 {[%clk 0:00:17.7]} 56... Rc2+ {[%clk 0:00:03.1]} 57. Kd4 {[%clk 0:00:17.8]}
57... Be2 {[%clk 0:00:04]} 58. e7 {[%clk 0:00:17.6]} 58... Kg3 {[%clk
0:00:04.3]} 59. e8=Q {[%clk 0:00:17.4]} 59... Bg4 {[%clk 0:00:04.9]} 60. Qe3+
{[%clk 0:00:17.3]} 60... Kg2 {[%clk 0:00:04.1]} 61. Qe4+ {[%clk 0:00:17.1]}
61... Kg3 {[%clk 0:00:03.9]} 62. Qxc2 {[%clk 0:00:17.8]} 1-0

[Event "*** SCC Grand Prix: Titled Tuesday Blitz"]
[Site "Chess.com"]
[Date "2020.09.29"]
[Round "1"]
[White "azikom"]
[Black "maxip32"]
[Result "1/2-1/2"]
[WhiteElo "2652"]
[BlackElo "2349"]
[TimeControl "180+1"]
[EndTime "10:08:16 PDT"]
[Termination "Game drawn by repetition"]

1. c4 {[%clk 0:02:57.3]} 1... g6 {[%clk 0:02:58.7]} 2. Nc3 {[%clk 0:02:57.7]}
2... Bg7 {[%clk 0:02:58.7]} 3. g3 {[%clk 0:02:57.2]} 3... Nf6 {[%clk 0:02:58.2]}
4. Bg2 {[%clk 0:02:57.6]} 4... O-O {[%clk 0:02:59.1]} 5. Nf3 {[%clk 0:02:57.6]}
5... d6 {[%clk 0:02:59]} 6. d3 {[%clk 0:02:58.1]} 6... e5 {[%clk 0:02:59]} 7.
O-O {[%clk 0:02:59]} 7... a5 {[%clk 0:02:59.2]} 8. a3 {[%clk 0:02:58.6]} 8...
Re8 {[%clk 0:02:59.1]} 9. Rb1 {[%clk 0:02:59]} 9... c6 {[%clk 0:02:59.4]} 10.
Bg5 {[%clk 0:02:57.3]} 10... h6 {[%clk 0:02:59]} 11. Bxf6 {[%clk 0:02:57.2]}
11... Bxf6 {[%clk 0:02:59.9]} 12. Nd2 {[%clk 0:02:57.7]} 12... Be6 {[%clk
0:02:58.2]} 13. b4 {[%clk 0:02:56]} 13... axb4 {[%clk 0:02:56.4]} 14. axb4
{[%clk 0:02:56]} 14... Bg7 {[%clk 0:02:56.5]} 15. Qb3 {[%clk 0:02:48.3]} 15...
Nd7 {[%clk 0:02:46.1]} 16. Rfc1 {[%clk 0:02:44.4]} 16... Kh7 {[%clk 0:02:41.3]}
17. b5 {[%clk 0:02:43.9]} 17... Nc5 {[%clk 0:02:40.9]} 18. Qc2 {[%clk
0:02:43.9]} 18... Rc8 {[%clk 0:02:35.1]} 19. bxc6 {[%clk 0:02:42.4]} 19... bxc6
{[%clk 0:02:36]} 20. Nde4 {[%clk 0:02:36.2]} 20... Nxe4 {[%clk 0:02:33]} 21.
Nxe4 {[%clk 0:02:36.1]} 21... f5 {[%clk 0:02:31.8]} 22. Nd2 {[%clk 0:02:28.6]}
22... Re7 {[%clk 0:02:21.6]} 23. Qa4 {[%clk 0:02:24.3]} 23... d5 {[%clk
0:02:19.8]} 24. cxd5 {[%clk 0:02:10.8]} 24... cxd5 {[%clk 0:02:20.7]} 25. Qa6
{[%clk 0:01:49.9]} 25... e4 {[%clk 0:01:44.1]} 26. Nf1 {[%clk 0:01:49]} 26...
Qe8 {[%clk 0:01:13.1]} 27. e3 {[%clk 0:01:41.9]} 27... Rec7 {[%clk 0:01:01.7]}
28. Rxc7 {[%clk 0:01:40.3]} 28... Rxc7 {[%clk 0:01:02]} 29. d4 {[%clk
0:01:37.7]} 29... Qc8 {[%clk 0:00:56.4]} 30. Qd6 {[%clk 0:01:21.8]} 30... Bf8
{[%clk 0:00:53.4]} 31. Qb6 {[%clk 0:01:20.3]} 31... Rc6 {[%clk 0:00:48.8]} 32.
Qb7+ {[%clk 0:01:18.5]} 32... Qxb7 {[%clk 0:00:37]} 33. Rxb7+ {[%clk 0:01:18]}
33... Kg8 {[%clk 0:00:37.9]} 34. h4 {[%clk 0:01:18.2]} 34... Rd6 {[%clk
0:00:36.6]} 35. Nd2 {[%clk 0:01:15.6]} 35... Rd7 {[%clk 0:00:36.4]} 36. Rb6
{[%clk 0:01:15.5]} 36... Kf7 {[%clk 0:00:35.7]} 37. Rb3 {[%clk 0:01:14.8]} 37...
Rc7 {[%clk 0:00:34.2]} 38. Bf1 {[%clk 0:01:14.1]} 38... Bd6 {[%clk 0:00:33.1]}
39. Rb6 {[%clk 0:01:13.5]} 39... Ke7 {[%clk 0:00:31.4]} 40. Nb3 {[%clk
0:01:11.1]} 40... g5 {[%clk 0:00:30.4]} 41. hxg5 {[%clk 0:01:07.7]} 41... hxg5
{[%clk 0:00:31.3]} 42. Na5 {[%clk 0:01:06.8]} 42... f4 {[%clk 0:00:19.1]} 43.
Nb7 {[%clk 0:01:05.9]} 43... Ba3 {[%clk 0:00:14.6]} 44. exf4 {[%clk 0:01:01.5]}
44... gxf4 {[%clk 0:00:14.1]} 45. gxf4 {[%clk 0:01:01.2]} 45... Rc1 {[%clk
0:00:14.1]} 46. Kg2 {[%clk 0:00:56.9]} 46... Bg4 {[%clk 0:00:14.2]} 47. Kg3
{[%clk 0:00:44.7]} 47... Bf3 {[%clk 0:00:12.4]} 48. Bh3 {[%clk 0:00:41.3]} 48...
Rg1+ {[%clk 0:00:12]} 49. Kh4 {[%clk 0:00:41.1]} 49... Rh1 {[%clk 0:00:09.7]}
50. Rh6 {[%clk 0:00:33.2]} 50... Kf7 {[%clk 0:00:07]} 51. f5 {[%clk 0:00:23.1]}
51... Be7+ {[%clk 0:00:06.2]} 52. Kg3 {[%clk 0:00:20.5]} 52... Bg5 {[%clk
0:00:05.8]} 53. Nd6+ {[%clk 0:00:17.6]} 53... Kf8 {[%clk 0:00:03.8]} 54. Rg6
{[%clk 0:00:15]} 54... Rg1+ {[%clk 0:00:03.2]} 55. Kh2 {[%clk 0:00:15.1]} 55...
Rh1+ {[%clk 0:00:03.4]} 56. Kg3 {[%clk 0:00:15.7]} 56... Rg1+ {[%clk 0:00:03.4]}
57. Kh2 {[%clk 0:00:15.8]} 57... Rh1+ {[%clk 0:00:02.6]} 58. Kg3 {[%clk
0:00:15.9]} 1/2-1/2

[Event "*** SCC Grand Prix: Titled Tuesday Blitz"]
[Site "Chess.com"]
[Date "2020.09.29"]
[Round "1"]
[White "Keithonsky"]
[Black "mfwagnerpeixoto"]
[Result "1/2-1/2"]
[WhiteElo "2535"]
[BlackElo "2224"]
[TimeControl "180+1"]
[EndTime "10:08:17 PDT"]
[Termination "Game drawn by stalemate"]

1. d4 {[%clk 0:03:00.9]} 1... Nf6 {[%clk 0:02:59.2]} 2. c4 {[%clk 0:02:58.8]}
2... c5 {[%clk 0:02:59.5]} 3. d5 {[%clk 0:02:58.7]} 3... d6 {[%clk 0:02:44.3]}
4. Nc3 {[%clk 0:02:58.2]} 4... g6 {[%clk 0:02:44.7]} 5. Nf3 {[%clk 0:02:57.9]}
5... Bg7 {[%clk 0:02:45.1]} 6. h3 {[%clk 0:02:58.8]} 6... O-O {[%clk 0:02:44.8]}
7. Bf4 {[%clk 0:02:59.4]} 7... a6 {[%clk 0:02:37.3]} 8. e3 {[%clk 0:02:59.2]}
8... b5 {[%clk 0:02:34.1]} 9. cxb5 {[%clk 0:02:59.3]} 9... axb5 {[%clk 0:02:35]}
10. Bxb5 {[%clk 0:02:59.8]} 10... Ne4 {[%clk 0:02:17.1]} 11. O-O {[%clk
0:02:53.3]} 11... Bxc3 {[%clk 0:02:10.9]} 12. bxc3 {[%clk 0:02:53.4]} 12... Nxc3
{[%clk 0:02:11.4]} 13. Qb3 {[%clk 0:02:52]} 13... Nxb5 {[%clk 0:02:10.9]} 14.
Qxb5 {[%clk 0:02:52.9]} 14... Ba6 {[%clk 0:02:10]} 15. Qa4 {[%clk 0:02:50.7]}
15... Nd7 {[%clk 0:01:59.7]} 16. Rfe1 {[%clk 0:02:50.3]} 16... Be2 {[%clk
0:01:50.8]} 17. Qc2 {[%clk 0:02:45.5]} 17... Bxf3 {[%clk 0:01:49.7]} 18. gxf3
{[%clk 0:02:46.4]} 18... Nf6 {[%clk 0:01:49.4]} 19. e4 {[%clk 0:02:45.4]} 19...
Qd7 {[%clk 0:01:49.4]} 20. Kg2 {[%clk 0:02:44.3]} 20... Nh5 {[%clk 0:01:48.3]}
21. Bh2 {[%clk 0:02:41.7]} 21... e5 {[%clk 0:01:40.4]} 22. dxe6 {[%clk
0:02:40.3]} 22... Qxe6 {[%clk 0:01:35.4]} 23. Red1 {[%clk 0:02:38]} 23... Rad8
{[%clk 0:01:29.5]} 24. Rd5 {[%clk 0:02:37]} 24... Qf6 {[%clk 0:01:26.5]} 25.
Rad1 {[%clk 0:02:35.6]} 25... Nf4+ {[%clk 0:01:26]} 26. Bxf4 {[%clk 0:02:35.4]}
26... Qxf4 {[%clk 0:01:26.9]} 27. Qd2 {[%clk 0:02:35.6]} 27... Qf6 {[%clk
0:01:12.9]} 28. Kg3 {[%clk 0:02:34.6]} 28... h5 {[%clk 0:01:09.9]} 29. Qf4
{[%clk 0:02:29.6]} 29... Qb2 {[%clk 0:01:03.5]} 30. R1d2 {[%clk 0:02:28]} 30...
Qc1 {[%clk 0:01:02.7]} 31. Kg2 {[%clk 0:02:25.4]} 31... Rb8 {[%clk 0:00:56.5]}
32. Qxd6 {[%clk 0:02:13]} 32... Rb1 {[%clk 0:00:52.9]} 33. Rd1 {[%clk
0:02:13.3]} 33... Qc2 {[%clk 0:00:43.6]} 34. Rxb1 {[%clk 0:02:12.6]} 34... Qxb1
{[%clk 0:00:43.6]} 35. Rxc5 {[%clk 0:02:07.8]} 35... Qxa2 {[%clk 0:00:40.5]} 36.
Qd5 {[%clk 0:02:04.8]} 36... Qa7 {[%clk 0:00:34.1]} 37. Rc6 {[%clk 0:01:43.7]}
37... Kg7 {[%clk 0:00:26.2]} 38. Rd6 {[%clk 0:01:43.7]} 38... Qe7 {[%clk
0:00:24.8]} 39. Rd7 {[%clk 0:01:43.5]} 39... Qf6 {[%clk 0:00:22.1]} 40. Rd6
{[%clk 0:01:43.5]} 40... Qe7 {[%clk 0:00:21.8]} 41. f4 {[%clk 0:01:43.8]} 41...
Re8 {[%clk 0:00:18.8]} 42. f3 {[%clk 0:01:40.5]} 42... Rf8 {[%clk 0:00:17.7]}
43. f5 {[%clk 0:01:40]} 43... Qg5+ {[%clk 0:00:16.6]} 44. Kf1 {[%clk 0:01:33]}
44... Qc1+ {[%clk 0:00:16.2]} 45. Ke2 {[%clk 0:01:33.2]} 45... Qc2+ {[%clk
0:00:16]} 46. Qd2 {[%clk 0:01:32.6]} 46... Qxd2+ {[%clk 0:00:15.3]} 47. Rxd2
{[%clk 0:01:31.8]} 47... gxf5 {[%clk 0:00:15.5]} 48. exf5 {[%clk 0:01:32.7]}
48... Kf6 {[%clk 0:00:15.7]} 49. Rd5 {[%clk 0:01:31.4]} 49... Re8+ {[%clk
0:00:15.7]} 50. Kf2 {[%clk 0:01:31.8]} 50... Re5 {[%clk 0:00:15.4]} 51. Rd6+
{[%clk 0:01:27.3]} 51... Kxf5 {[%clk 0:00:14.9]} 52. Kg3 {[%clk 0:01:28.2]}
52... f6 {[%clk 0:00:11.1]} 53. h4 {[%clk 0:01:25.6]} 53... Re1 {[%clk
0:00:09.8]} 54. Rd5+ {[%clk 0:01:25.7]} 54... Kg6 {[%clk 0:00:09.3]} 55. Kf4
{[%clk 0:01:26.1]} 55... Re8 {[%clk 0:00:09.2]} 56. Rd7 {[%clk 0:01:25.2]} 56...
Ra8 {[%clk 0:00:08.9]} 57. Rb7 {[%clk 0:01:25]} 57... Ra4+ {[%clk 0:00:08.8]}
58. Kg3 {[%clk 0:01:25.1]} 58... Rc4 {[%clk 0:00:09.3]} 59. Rb5 {[%clk
0:01:24.5]} 59... Rd4 {[%clk 0:00:08.7]} 60. Rb8 {[%clk 0:01:23]} 60... Rc4
{[%clk 0:00:08.3]} 61. Rg8+ {[%clk 0:01:23.4]} 61... Kh6 {[%clk 0:00:07.8]} 62.
Kh3 {[%clk 0:01:22.4]} 62... Rf4 {[%clk 0:00:06.7]} 63. Kg3 {[%clk 0:01:22.5]}
63... Rc4 {[%clk 0:00:06.8]} 64. Rf8 {[%clk 0:01:23]} 64... Kg6 {[%clk
0:00:06.2]} 65. Re8 {[%clk 0:01:23.9]} 65... Kf7 {[%clk 0:00:05.2]} 66. Rd8
{[%clk 0:01:20.6]} 66... Kg6 {[%clk 0:00:05]} 67. Re8 {[%clk 0:01:20.4]} 67...
Rd4 {[%clk 0:00:05]} 68. Re4 {[%clk 0:01:20.1]} 68... Rxe4 {[%clk 0:00:04.2]}
69. fxe4 {[%clk 0:01:21]} 69... Kf7 {[%clk 0:00:03.1]} 70. Kf3 {[%clk
0:01:18.4]} 70... Kg6 {[%clk 0:00:03.7]} 71. Kf4 {[%clk 0:01:17.6]} 71... Kg7
{[%clk 0:00:03.3]} 72. e5 {[%clk 0:01:13.8]} 72... fxe5+ {[%clk 0:00:03.1]} 73.
Kxe5 {[%clk 0:01:14.7]} 73... Kh8 {[%clk 0:00:03.5]} 74. Kf6 {[%clk 0:01:14.5]}
74... Kg8 {[%clk 0:00:04.4]} 75. Kg5 {[%clk 0:01:15.4]} 75... Kh8 {[%clk
0:00:05.3]} 76. Kg6 {[%clk 0:01:16.1]} 76... Kg8 {[%clk 0:00:06.2]} 77. Kh6
{[%clk 0:01:16.8]} 77... Kh8 {[%clk 0:00:07.1]} 78. Kxh5 {[%clk 0:01:17.7]}
78... Kg8 {[%clk 0:00:08]} 79. Kg6 {[%clk 0:01:18.5]} 79... Kh8 {[%clk
0:00:08.9]} 80. Kh6 {[%clk 0:01:19]} 80... Kg8 {[%clk 0:00:09.8]} 81. h5 {[%clk
0:01:19.9]} 81... Kh8 {[%clk 0:00:10.7]} 82. Kg6 {[%clk 0:01:20.5]} 82... Kg8
{[%clk 0:00:11.6]} 83. Kh6 {[%clk 0:01:21.1]} 83... Kh8 {[%clk 0:00:12.5]} 84.
Kg5 {[%clk 0:01:22]} 84... Kg8 {[%clk 0:00:13.4]} 85. h6 {[%clk 0:01:22.8]}
85... Kh8 {[%clk 0:00:14.3]} 86. Kh5 {[%clk 0:01:23.6]} 86... Kg8 {[%clk
0:00:15.2]} 87. Kg6 {[%clk 0:01:24.4]} 87... Kh8 {[%clk 0:00:16.1]} 88. h7
{[%clk 0:01:25.3]} 1/2-1/2

[Event "*** SCC Grand Prix: Titled Tuesday Blitz"]
[Site "Chess.com"]
[Date "2020.09.29"]
[Round "1"]
[White "mishanick"]
[Black "BulletMercenary"]
[Result "1-0"]
[WhiteElo "3006"]
[BlackElo "2451"]
[TimeControl "180+1"]
[EndTime "10:08:18 PDT"]
[Termination "mishanick won on time"]

1. d4 {[%clk 0:02:56.3]} 1... e6 {[%clk 0:03:00]} 2. c4 {[%clk 0:02:55.5]} 2...
d5 {[%clk 0:02:58.5]} 3. Nc3 {[%clk 0:02:55]} 3... Nf6 {[%clk 0:02:58.3]} 4. Nf3
{[%clk 0:02:54.4]} 4... Be7 {[%clk 0:02:58.3]} 5. Bf4 {[%clk 0:02:54.1]} 5...
O-O {[%clk 0:02:57.4]} 6. e3 {[%clk 0:02:54.7]} 6... b6 {[%clk 0:02:57.7]} 7.
cxd5 {[%clk 0:02:54.4]} 7... Nxd5 {[%clk 0:02:56.4]} 8. Nxd5 {[%clk 0:02:54.8]}
8... exd5 {[%clk 0:02:56.5]} 9. Bd3 {[%clk 0:02:53.6]} 9... Be6 {[%clk
0:02:54.1]} 10. O-O {[%clk 0:02:52.8]} 10... c5 {[%clk 0:02:54.3]} 11. b3 {[%clk
0:02:52.8]} 11... Bf6 {[%clk 0:02:40.8]} 12. Rc1 {[%clk 0:02:51]} 12... Qe7
{[%clk 0:02:33.4]} 13. Ne5 {[%clk 0:02:47.4]} 13... Rc8 {[%clk 0:02:26.8]} 14.
Re1 {[%clk 0:02:46]} 14... Nc6 {[%clk 0:02:26.2]} 15. Nxc6 {[%clk 0:02:24.8]}
15... Rxc6 {[%clk 0:02:26]} 16. dxc5 {[%clk 0:02:25.4]} 16... Rxc5 {[%clk
0:02:12.1]} 17. Rxc5 {[%clk 0:02:17.3]} 17... Qxc5 {[%clk 0:02:07.4]} 18. Qb1
{[%clk 0:02:16.1]} 18... Rc8 {[%clk 0:02:05.7]} 19. Bxh7+ {[%clk 0:02:15.2]}
19... Kf8 {[%clk 0:02:06.2]} 20. Bd3 {[%clk 0:02:15.7]} 20... d4 {[%clk
0:01:46.6]} 21. e4 {[%clk 0:02:07.1]} 21... Bg5 {[%clk 0:01:30.2]} 22. Bxg5
{[%clk 0:01:40.7]} 22... Qxg5 {[%clk 0:01:31.1]} 23. Qd1 {[%clk 0:01:40.5]}
23... Rc3 {[%clk 0:01:06.9]} 24. g3 {[%clk 0:01:39.5]} 24... Bg4 {[%clk
0:00:45.6]} 25. f3 {[%clk 0:01:38.4]} 25... Bh3 {[%clk 0:00:29.7]} 26. f4 {[%clk
0:01:35.2]} 26... Qc5 {[%clk 0:00:25.5]} 27. Qd2 {[%clk 0:01:33.9]} 27... a5
{[%clk 0:00:22.3]} 28. f5 {[%clk 0:01:25.5]} 28... f6 {[%clk 0:00:20.9]} 29. Kf2
{[%clk 0:01:15.9]} 29... a4 {[%clk 0:00:17.3]} 30. bxa4 {[%clk 0:01:14.8]} 30...
Qa3 {[%clk 0:00:17.4]} 31. Rd1 {[%clk 0:01:03]} 31... Bg4 {[%clk 0:00:16.2]} 32.
Be2 {[%clk 0:01:02.7]} 32... d3 {[%clk 0:00:12]} 33. Bxg4 {[%clk 0:00:48]} 33...
Rc2 {[%clk 0:00:11.9]} 34. Ke3 {[%clk 0:00:48.5]} 34... Rxd2 {[%clk 0:00:11.9]}
35. Rxd2 {[%clk 0:00:49.4]} 35... Qxa4 {[%clk 0:00:11.1]} 36. Bd1 {[%clk
0:00:48.7]} 36... Qc4 {[%clk 0:00:09.3]} 37. Bb3 {[%clk 0:00:49.1]} 37... Qc1
{[%clk 0:00:09.1]} 38. Kxd3 {[%clk 0:00:49.1]} 38... Ke7 {[%clk 0:00:09]} 39.
Rc2 {[%clk 0:00:48.2]} 39... Qd1+ {[%clk 0:00:09.1]} 40. Ke3 {[%clk 0:00:48.6]}
40... Qe1+ {[%clk 0:00:09.3]} 41. Kf4 {[%clk 0:00:47.9]} 41... Qf1+ {[%clk
0:00:09.2]} 42. Kg4 {[%clk 0:00:48.3]} 42... Qd1+ {[%clk 0:00:09.1]} 43. Kh4
{[%clk 0:00:47.8]} 43... Qf3 {[%clk 0:00:07.8]} 44. Rc7+ {[%clk 0:00:45.1]}
44... Kd6 {[%clk 0:00:07.9]} 45. Rxg7 {[%clk 0:00:43.6]} 45... Qxe4+ {[%clk
0:00:07.7]} 46. g4 {[%clk 0:00:41]} 46... Qf4 {[%clk 0:00:06.7]} 47. Kh5 {[%clk
0:00:39]} 47... Qxh2+ {[%clk 0:00:05.7]} 48. Kg6 {[%clk 0:00:39.6]} 48... Qh4
{[%clk 0:00:06]} 49. Kf7 {[%clk 0:00:33.4]} 49... Ke5 {[%clk 0:00:06]} 50. Ke7
{[%clk 0:00:25.1]} 50... Qh6 {[%clk 0:00:04.7]} 51. Rg6 {[%clk 0:00:24.1]} 51...
Qd2 {[%clk 0:00:04.2]} 52. Rg8 {[%clk 0:00:20]} 52... Qd6+ {[%clk 0:00:04.2]}
53. Kf7 {[%clk 0:00:20.4]} 53... Qd7+ {[%clk 0:00:04.2]} 54. Kg6 {[%clk
0:00:20.7]} 54... Qd2 {[%clk 0:00:04.3]} 55. Re8+ {[%clk 0:00:20.6]} 55... Kf4
{[%clk 0:00:04.5]} 56. Kxf6 {[%clk 0:00:20.5]} 56... Qd4+ {[%clk 0:00:04.6]} 57.
Kg6 {[%clk 0:00:19.5]} 57... Kxg4 {[%clk 0:00:04.9]} 58. f6 {[%clk 0:00:19.7]}
58... Qd3+ {[%clk 0:00:04.4]} 59. Kg7 {[%clk 0:00:20.1]} 59... Qd4 {[%clk
0:00:03.7]} 60. Kg6 {[%clk 0:00:16.3]} 60... Qd3+ {[%clk 0:00:03.6]} 61. Kh6
{[%clk 0:00:16.6]} 61... Qd4 {[%clk 0:00:03.6]} 62. Rf8 {[%clk 0:00:15.5]} 62...
Kf5 {[%clk 0:00:03]} 63. Bc2+ {[%clk 0:00:15.7]} 63... Ke6 {[%clk 0:00:02.6]}
64. Bg6 {[%clk 0:00:14.8]} 1-0